bitfinex-derivatives/quotes_ETHF0:USTF0_20240920
["timestamp","ask_amount","ask_price","bid_price","bid_amount"]
[1726819476351,3.2078,2555.6,2555.2,0.39129]
[1726819476854,3.2078,2555.6,2555.3,0.39128]
[1726819477054,3.2078,2555.6,2554.9,3.2078]
[1726819477354,3.2078,2556.2,2556.1,0.39115]
[1726819477560,3.59885,2556.8,2555.6,3.2078]
[1726819477849,3.2078,2556.8,2556.6,0.39107]
[1726819478053,3.2078,2556.8,2556.0,0.97794]
[1726819478249,3.2078,2557.1,2556.0,0.97794]
[1726819478456,3.2078,2557.1,2556.6,0.39108]
[1726819478954,3.2078,2557.1,2556.5,0.39109]
[1726819479156,3.2078,2557.1,2556.6,0.39108]
[1726819479550,3.5988,2557.1,2556.5,0.39109]
[1726819479752,3.2078,2557.1,2556.6,0.39108]
[1726819480448,3.2078,2557.1,2556.2,3.2078]
[1726819480647,3.2078,2557.1,2556.6,0.39107]
[1726819480843,3.2078,2556.8,2555.9,3.2078]
[1726819481052,3.2078,2556.8,2556.1,0.39115]
[1726819481258,0.39107,2556.7,2556.1,0.39115]
[1726819481558,3.2078,2556.7,2556.2,0.39114]
[1726819482058,3.2078,2556.7,2555.8,0.3771]
[1726819482757,3.2078,2556.7,2555.9,3.2078]
[1726819482957,3.59883,2557.0,2555.9,3.2078]
[1726819483157,3.2078,2556.7,2556.4,0.3911]
[1726819483553,3.2078,2556.7,2556.3,0.39112]
[1726819483755,3.2078,2556.7,2556.2,0.39114]
[1726819484065,3.59887,2556.7,2555.9,3.2078]
[1726819484259,3.2078,2556.7,2556.1,0.39115]
[1726819484460,3.59887,2556.7,2556.1,0.39115]
[1726819484657,3.2078,2556.7,2555.9,3.2078]
[1726819484862,3.2078,2556.4,2555.9,0.39118]
[1726819485364,3.59892,2556.4,2555.8,0.3912]
[1726819485664,3.2078,2556.4,2555.7,3.2078]
[1726819485856,3.2078,2556.7,2556.1,0.39114]
[1726819486057,3.59887,2556.7,2556.1,0.39115]
[1726819486257,3.2078,2556.7,2556.1,0.39115]
[1726819486465,0.39109,2556.6,2556.0,0.39116]
[1726819486861,3.59887,2556.7,2555.7,3.2078]
[1726819487061,0.39109,2556.6,2556.0,0.39116]
[1726819488067,0.39109,2556.6,2556.1,0.39116]
[1726819488266,0.39109,2556.6,2556.0,0.39116]
[1726819488660,3.2078,2556.4,2555.7,3.2078]
[1726819488968,3.2078,2556.4,2556.0,0.39117]
[1726819489264,3.2078,2556.1,2555.5,0.3973]
[1726819489461,0.39113,2556.3,2555.7,0.39121]
[1726819489667,3.2078,2556.1,2555.7,0.39121]
[1726819489860,3.2078,2556.1,2555.8,0.3912]
[1726819490369,3.2078,2556.1,2555.5,0.3973]
[1726819490861,3.2078,2556.1,2555.9,0.39118]
[1726819491367,3.2078,2556.1,2555.5,0.3973]
[1726819491568,3.2078,2556.1,2556.0,0.39117]
[1726819493359,3.2078,2556.1,2555.5,0.3973]
[1726819494362,3.2078,2556.1,2555.7,0.39121]
[1726819494566,3.2078,2556.1,2555.8,0.3912]
[1726819495671,3.2078,2556.1,2555.5,0.3973]
[1726819495870,3.2078,2556.1,2555.9,0.39118]
[1726819496167,3.2078,2556.1,2555.9,0.39119]
[1726819496772,3.2078,2556.1,2555.8,0.3912]
[1726819496966,3.2078,2556.1,2555.9,0.39119]
[1726819497278,3.2078,2556.1,2555.8,0.3912]
[1726819497879,3.2078,2556.1,2555.7,0.39121]
[1726819498079,3.599,2555.9,2555.1,3.2078]
[1726819498280,0.39121,2555.8,2555.3,0.39127]
[1726819498482,3.59899,2555.9,2555.3,0.39127]
[1726819498671,3.2078,2555.9,2555.4,0.39126]
[1726819498873,3.59899,2555.9,2555.4,0.39126]
[1726819499180,3.59899,2555.9,2555.2,0.39128]
[1726819499378,3.2078,2555.9,2555.3,0.39127]
[1726819499577,3.59899,2555.9,2555.1,0.4099]
[1726819499779,3.59899,2555.9,2555.2,0.3913]
[1726819499980,3.2078,2555.3,2554.8,0.7619]
[1726819500283,3.59915,2554.9,2554.5,0.3753]
[1726819500474,3.2078,2554.9,2554.5,0.3753]
[1726819500679,3.2078,2554.9,2554.5,0.7667]
[1726819500876,3.2078,2554.9,2554.5,0.3753]
[1726819502181,0.2306,2555.2,2554.5,0.3753]
[1726819502382,3.2078,2555.0,2554.5,0.3753]
[1726819502583,3.2078,2555.0,2554.5,0.76669]
[1726819503081,3.2078,2555.0,2554.5,0.3753]
[1726819503283,3.2078,2555.7,2554.9,3.2078]
[1726819503486,3.2078,2555.4,2555.3,0.39128]
[1726819503783,3.4388,2556.1,2555.4,0.39126]
[1726819503982,3.2078,2556.1,2555.5,0.4113]
[1726819504182,3.2078,2556.1,2555.6,0.3762]
[1726819504478,3.2078,2556.1,2555.9,0.39118]
[1726819505177,3.2078,2556.1,2555.8,0.3912]
[1726819505372,3.2078,2556.1,2555.9,0.39118]
[1726819505982,3.2078,2556.1,2555.7,0.3973]
[1726819506286,3.2078,2556.1,2555.6,0.3762]
[1726819506685,3.2078,2555.7,2555.5,0.4113]
[1726819506880,3.2078,2555.7,2555.1,0.3913]
[1726819507080,3.2078,2555.7,2555.1,0.7838]
[1726819507381,3.2078,2555.7,2555.1,0.3925]
[1726819507881,3.2078,2556.0,2555.1,0.3925]
[1726819508087,3.2078,2555.7,2555.2,0.39129]
[1726819508587,3.2078,2555.7,2555.1,0.3925]
[1726819509380,3.2078,2556.0,2555.2,0.39129]
[1726819509579,3.2078,2555.9,2555.3,0.39128]
[1726819509981,3.59899,2555.9,2555.1,0.3925]
[1726819510190,3.59899,2555.9,2555.2,0.39129]
[1726819510386,3.2078,2555.6,2555.1,0.7838]
[1726819510690,3.599,2555.9,2555.2,0.3913]
[1726819511089,3.2078,2555.6,2555.2,0.3913]
[1726819511285,3.2078,2555.5,2555.1,0.3925]
[1726819511486,0.39122,2555.7,2555.1,0.3925]
[1726819511787,3.2078,2555.5,2555.1,0.3925]
[1726819512982,3.2078,2555.2,2554.3,4.198]
[1726819513188,3.2078,2554.9,2554.0,1.1794]
[1726819513688,3.59914,2554.9,2554.2,0.39144]
[1726819513888,3.2078,2554.6,2554.2,0.39144]
[1726819514687,3.2078,2554.6,2554.0,1.1794]
[1726819514886,3.2078,2554.6,2554.2,0.39144]
[1726819515091,3.2078,2554.6,2554.0,0.7859]
[1726819516092,3.2078,2554.6,2554.3,0.39143]
[1726819516598,3.2078,2554.6,2554.2,0.39144]
[1726819516891,0.39141,2554.5,2554.0,0.7859]
[1726819517091,0.39146,2554.2,2553.4,3.2078]
[1726819517289,3.2078,2553.9,2553.4,3.2078]
[1726819517485,3.2078,2553.9,2552.7,4.0195]
[1726819517887,3.2078,2553.4,2552.7,1.20337]
[1726819518093,3.2078,2553.4,2552.9,0.39164]
[1726819518291,3.2078,2553.4,2553.3,0.39159]
[1726819518495,3.2078,2554.0,2553.0,3.2078]
[1726819518798,3.4379,2554.4,2553.0,3.2078]
[1726819518993,3.4379,2554.4,2553.3,3.2078]
[1726819519296,3.4379,2554.4,2553.4,1.1852]
[1726819519696,3.4379,2554.4,2553.8,0.39151]
[1726819519999,3.4379,2554.4,2553.4,1.1852]
[1726819520295,3.4379,2554.4,2553.6,0.39153]
[1726819520499,3.4379,2554.4,2553.4,1.1852]
[1726819520690,3.2078,2554.4,2553.6,3.2078]
[1726819520887,3.2078,2554.4,2554.2,0.39144]
[1726819521093,3.2078,2554.4,2554.3,0.39143]
[1726819521398,3.2078,2554.4,2553.6,3.2078]
[1726819521898,3.2078,2554.4,2553.7,3.9152]
[1726819522196,3.2078,2554.4,2554.2,0.39144]
[1726819522398,3.2078,2554.4,2554.3,0.3932]
[1726819522791,3.2078,2554.4,2554.3,4.3084]
[1726819523499,3.2078,2554.4,2553.9,0.39149]
[1726819523700,3.2078,2554.4,2553.8,0.3915]
[1726819524000,3.2078,2554.4,2554.0,0.39148]
[1726819524393,3.2078,2554.4,2553.7,0.3925]
[1726819524592,3.2078,2554.4,2553.7,0.78401]
[1726819524800,3.2078,2554.4,2553.7,0.3925]
[1726819525001,3.2078,2554.4,2553.7,3.6003]
[1726819525296,3.2078,2554.4,2554.2,0.39143]
[1726819525498,3.2078,2554.4,2553.7,0.3925]
[1726819526000,0.2302,2555.0,2553.7,4.3077]
[1726819526001,3.2078,2554.8,2553.7,4.3077]
[1726819526196,3.2078,2554.8,2553.9,3.2078]
[1726819526505,3.2078,2555.4,2554.6,3.2078]
[1726819527104,0.46,2555.6,2554.7,0.8049]
[1726819527397,0.46,2555.6,2554.7,1.214]
[1726819527603,3.2078,2555.6,2555.2,0.39128]
[1726819527803,3.2078,2555.6,2554.7,1.214]
[1726819528101,3.2078,2556.2,2555.2,3.2078]
[1726819528401,3.2078,2555.9,2555.5,0.39124]
[1726819528596,3.2078,2555.9,2555.6,0.39122]
[1726819528797,3.2078,2556.3,2555.4,0.3983]
[1726819528997,3.4377,2556.4,2555.5,3.2078]
[1726819529204,3.4377,2556.4,2555.5,3.6169]
[1726819529797,3.2078,2556.1,2555.3,0.4066]
[1726819530003,3.2078,2555.8,2555.3,0.4066]
[1726819530198,3.2078,2555.4,2554.7,0.39136]
[1726819531002,3.2078,2555.4,2554.6,3.97178]
[1726819531201,3.2078,2555.4,2554.7,0.39137]
[1726819533005,3.2078,2555.4,2554.6,0.3726]
[1726819533299,3.2078,2554.7,2554.1,3.6141]
[1726819533491,3.2078,2554.7,2554.2,0.79304]
[1726819533690,3.2078,2554.7,2554.3,0.39143]
[1726819533894,3.4379,2555.0,2554.2,0.4016]
[1726819534091,3.4379,2555.0,2554.3,0.39142]
[1726819534296,3.4379,2555.0,2554.4,0.39141]
[1726819534496,3.4379,2555.0,2554.3,0.39142]
[1726819534800,3.4379,2555.0,2554.3,0.39143]
[1726819535305,3.4379,2555.0,2554.4,0.39142]
[1726819535505,3.4379,2555.0,2554.2,0.4016]
[1726819535705,3.2078,2554.7,2554.2,0.4016]
[1726819536103,3.2078,2554.7,2554.3,0.39143]
[1726819536806,3.2078,2554.7,2554.2,0.79304]
[1726819537105,3.2078,2554.7,2554.3,0.39143]
[1726819537305,3.2078,2554.7,2554.3,0.39142]
[1726819537807,3.2078,2554.7,2554.2,0.4016]
[1726819538010,3.4379,2555.0,2554.4,0.39142]
[1726819538307,3.4379,2555.0,2554.4,0.39141]
[1726819538506,3.82923,2555.0,2554.4,0.39141]
[1726819538705,3.82923,2555.0,2554.3,0.39142]
[1726819538906,0.39135,2554.9,2554.2,0.79304]
[1726819539207,0.39136,2554.8,2554.2,0.4016]
[1726819539403,3.2078,2554.6,2553.7,3.2078]
[1726819539601,3.59919,2554.6,2553.9,0.39148]
[1726819539804,0.39141,2554.5,2553.9,0.39148]
[1726819540005,0.2304,2554.4,2553.8,0.3915]
[1726819540205,0.2304,2554.4,2553.9,0.39149]
[1726819541110,3.2078,2554.3,2553.6,1.1698]
[1726819541410,3.2078,2554.3,2553.8,0.3915]
[1726819541702,3.2078,2554.3,2553.6,2.14865]
[1726819541908,0.2304,2554.4,2553.6,4.3776]
[1726819542108,0.2304,2554.4,2554.0,0.39147]
[1726819542510,0.2304,2554.4,2554.1,0.39146]
[1726819542709,0.2304,2554.4,2554.0,0.39147]
[1726819543109,0.2304,2554.4,2553.9,0.39149]
[1726819543309,0.2304,2554.4,2554.0,0.39148]
[1726819543910,0.2304,2554.4,2553.6,4.3776]
[1726819544110,0.2304,2554.4,2554.0,0.39147]
[1726819544719,0.2304,2554.4,2553.6,4.3776]
[1726819544916,3.2078,2554.3,2553.9,0.39149]
[1726819545112,3.2078,2554.2,2554.0,0.39148]
[1726819545318,0.2304,2554.4,2554.0,0.39148]
[1726819545823,0.2304,2554.4,2553.9,0.39148]
[1726819546821,3.2078,2554.6,2553.9,3.2078]
[1726819547018,3.2078,2554.6,2554.4,0.39141]
[1726819547219,3.2078,2554.6,2554.5,0.3914]
[1726819547414,3.2078,2554.6,2553.9,4.18654]
[1726819547415,3.2078,2555.1,2554.2,3.2078]
[1726819547620,3.2078,2555.1,2554.9,0.39133]
[1726819547818,0.2308,2555.3,2554.4,0.97855]
[1726819548121,3.2078,2555.4,2554.4,4.18635]
[1726819548320,3.2078,2555.4,2555.1,0.3913]
[1726819548522,3.2078,2555.4,2555.2,0.3812]
[1726819548716,3.2078,2555.8,2555.2,0.3812]
[1726819549315,3.59894,2556.2,2555.6,0.39122]
[1726819549622,0.97772,2556.6,2555.2,0.3812]
[1726819549623,3.2078,2555.9,2555.7,0.39122]
[1726819549822,3.2078,2555.9,2555.8,0.3912]
[1726819550121,3.2078,2556.2,2555.3,0.3943]
[1726819550323,3.2078,2555.9,2555.7,0.39121]
[1726819550620,3.2078,2555.9,2555.6,0.39123]
[1726819550822,3.2078,2555.9,2555.5,0.39124]
[1726819551023,3.2078,2555.9,2555.6,0.39123]
[1726819551316,3.2078,2555.9,2555.3,0.3943]
[1726819551518,3.2078,2555.9,2555.4,0.39126]
[1726819551720,3.2078,2555.9,2555.4,0.39125]
[1726819552111,3.59899,2555.9,2555.3,0.78558]
[1726819552517,3.2078,2555.9,2555.4,0.39126]
[1726819552720,3.2078,2555.9,2555.3,0.78557]
[1726819553323,3.2078,2555.9,2555.4,0.39126]
[1726819554516,0.97779,2556.4,2555.2,0.3812]
[1726819554517,3.2078,2555.5,2555.2,0.3812]
[1726819554723,3.2078,2555.5,2554.6,7.4058]
[1726819554724,3.2078,2555.5,2554.7,0.3763]
[1726819554922,3.2078,2555.2,2554.7,0.76766]
[1726819555126,3.2078,2555.2,2554.7,0.3763]
[1726819555316,3.2078,2555.2,2554.7,0.76767]
[1726819555917,3.2078,2555.2,2554.7,0.3763]
[1726819556618,3.2078,2555.2,2554.8,0.39135]
[1726819556821,3.2078,2555.2,2555.1,0.39131]
[1726819557421,3.2078,2555.2,2555.1,4.30491]
[1726819557822,3.2078,2555.5,2555.1,4.30491]
[1726819558018,3.2078,2555.5,2555.2,0.39129]
[1726819558221,3.2078,2555.5,2555.3,0.39128]
[1726819559028,3.2078,2555.5,2555.2,0.39128]
[1726819559230,3.2078,2555.5,2555.3,0.4057]
[1726819560529,3.2078,2555.5,2555.0,0.39132]
[1726819560734,3.2078,2555.2,2554.9,0.39133]
[1726819561644,3.2078,2555.2,2555.0,0.39133]
[1726819561944,3.9136,2555.1,2553.9,3.2078]
[1726819562241,3.59922,2554.5,2554.0,0.39148]
[1726819562438,3.59922,2554.5,2553.9,3.2078]
[1726819562439,0.39143,2554.4,2553.9,3.2078]
[1726819562637,0.62222,2554.4,2553.9,3.59929]
[1726819562838,0.2308,2554.4,2553.8,0.4099]
[1726819563034,3.59926,2554.2,2553.6,0.39153]
[1726819563342,3.59926,2554.2,2553.4,3.2078]
[1726819563343,3.2078,2553.9,2553.5,0.39155]
[1726819563639,3.2078,2553.9,2553.4,3.6106]
[1726819564035,3.2078,2553.9,2553.6,0.39153]
[1726819564543,3.2078,2553.9,2553.5,0.39155]
[1726819564845,3.2078,2553.9,2553.6,0.39153]
[1726819565045,3.2078,2553.9,2553.4,0.4028]
[1726819565347,3.2078,2553.9,2553.5,0.39155]
[1726819565640,3.2078,2554.2,2554.0,0.39148]
[1726819565846,3.2078,2554.5,2553.4,0.4028]
[1726819566148,3.2078,2554.0,2552.9,3.2078]
[1726819566345,3.2078,2554.0,2553.0,1.1832]
[1726819566646,3.2078,2554.0,2553.6,0.39154]
[1726819566945,3.2078,2554.0,2553.5,0.39155]
[1726819567346,3.2078,2554.0,2553.4,0.39156]
[1726819568043,3.2078,2554.0,2553.0,1.1832]
[1726819568344,3.2078,2553.7,2553.3,0.39158]
[1726819569038,3.2078,2553.7,2553.4,0.39157]
[1726819569641,3.2078,2553.7,2553.3,0.39158]
[1726819569946,3.2078,2553.7,2553.2,0.39159]
[1726819570147,3.2078,2553.7,2553.3,0.39158]
[1726819570646,3.2078,2553.7,2553.2,0.39159]
[1726819570943,3.2078,2553.7,2553.4,0.39156]
[1726819571343,3.2078,2553.7,2553.0,1.1832]
[1726819571344,3.2078,2553.7,2553.3,0.39158]
[1726819571746,3.2078,2553.7,2553.0,1.1832]
[1726819571944,3.2078,2554.1,2553.5,3.2078]
[1726819572243,0.97828,2555.1,2553.5,3.2078]
[1726819572244,3.2078,2554.4,2554.1,0.39146]
[1726819572547,3.2078,2554.4,2553.8,0.8105]
[1726819572748,3.2078,2554.4,2554.0,0.39147]
[1726819573344,3.2078,2554.4,2553.8,0.8105]
[1726819573542,3.2078,2554.4,2554.0,0.39148]
[1726819574052,3.2078,2554.4,2554.0,0.39147]
[1726819574547,3.2078,2554.4,2553.8,0.8105]
[1726819574941,3.2078,2554.4,2554.0,0.39147]
[1726819575143,3.2078,2554.4,2553.8,0.8105]
[1726819575349,3.2078,2554.4,2553.9,0.39148]
[1726819575642,3.2078,2554.4,2553.8,0.8105]
[1726819575643,3.2078,2554.4,2554.1,0.39146]
[1726819575835,3.2078,2554.4,2553.8,0.8105]
[1726819576039,3.2078,2554.4,2554.1,0.39146]
[1726819576349,3.2078,2554.4,2553.8,0.8105]
[1726819577047,3.2078,2554.4,2554.2,0.39144]
[1726819577245,3.2078,2554.4,2554.1,0.39145]
[1726819578250,3.2078,2554.4,2554.0,0.39147]
[1726819578451,3.2078,2554.4,2553.8,0.8105]
[1726819578640,3.2078,2554.4,2554.3,0.39143]
[1726819578949,0.97825,2555.2,2553.8,0.8105]
[1726819578950,3.2078,2554.7,2554.6,0.39139]
[1726819579248,3.2078,2555.1,2554.8,0.39134]
[1726819579443,3.2078,2555.1,2554.9,0.39133]
[1726819579640,3.2078,2555.1,2554.8,0.39135]
[1726819579842,3.2078,2555.1,2554.9,0.4054]
[1726819580649,3.2078,2555.1,2555.0,0.39133]
[1726819580950,3.2078,2555.4,2555.0,0.39133]
[1726819581154,3.2078,2555.4,2554.9,0.4054]
[1726819581350,3.2078,2555.4,2555.0,0.39132]
[1726819581850,3.2078,2555.1,2554.9,0.4054]
[1726819582048,3.59912,2555.1,2554.9,0.4054]
[1726819582247,3.2078,2555.1,2554.3,3.2078]
[1726819582446,3.2078,2554.7,2554.3,0.39142]
[1726819582647,3.2078,2554.7,2554.3,0.39143]
[1726819583344,3.2078,2554.7,2554.1,0.3777]
[1726819583546,3.59918,2554.7,2554.1,0.3777]
[1726819584654,3.2078,2554.4,2553.7,0.39152]
[1726819584849,0.39145,2554.3,2553.6,1.1614]
[1726819585049,3.2078,2554.0,2553.6,0.3858]
[1726819585353,3.2078,2553.7,2553.6,0.3858]
[1726819585553,3.2078,2553.7,2553.5,0.39155]
[1726819585750,3.2078,2553.7,2553.4,0.39156]
[1726819586151,3.2078,2553.7,2553.2,0.77739]
[1726819586347,3.2078,2553.7,2553.2,0.3858]
[1726819586549,3.2078,2553.4,2552.9,0.39164]
[1726819586747,3.2078,2553.4,2552.8,0.39165]
[1726819586953,3.2078,2553.4,2552.9,0.39164]
[1726819587154,3.2078,2553.4,2552.8,0.3873]
[1726819587449,3.2078,2553.4,2552.5,0.3858]
[1726819587652,3.2078,2553.4,2552.7,3.2078]
[1726819587849,3.2078,2553.4,2552.6,1.16389]
[1726819588052,3.2078,2553.4,2552.7,0.39168]
[1726819588541,3.2078,2553.4,2552.6,1.16389]
[1726819588747,3.2078,2553.0,2552.7,0.39168]
[1726819589357,3.2078,2553.0,2552.6,0.7722]
[1726819589863,3.2078,2553.3,2552.6,0.7722]
[1726819590258,3.2078,2553.3,2552.8,0.39165]
[1726819590851,3.2078,2553.3,2552.7,3.2078]
[1726819591060,3.2078,2553.3,2553.0,0.39163]
[1726819591353,3.2078,2553.3,2552.7,3.2078]
[1726819591555,3.2078,2553.3,2553.0,0.39162]
[1726819591758,3.2078,2553.3,2553.1,0.39161]
[1726819591961,0.97855,2554.5,2552.6,0.7722]
[1726819591962,3.2078,2553.6,2553.0,3.2078]
[1726819592160,3.2078,2553.6,2553.5,0.39156]
[1726819592360,3.2078,2554.0,2553.6,0.39153]
[1726819592661,3.2078,2554.0,2553.0,3.2078]
[1726819593055,3.2078,2554.0,2553.8,0.39151]
[1726819593257,3.2078,2554.3,2554.1,0.39145]
[1726819593554,3.2078,2554.6,2553.7,1.1806]
[1726819593754,3.2078,2554.6,2554.3,0.39142]
[1726819593958,0.62182,2555.1,2554.3,0.39142]
[1726819593959,3.2078,2555.0,2554.3,0.39143]
[1726819594158,3.2078,2555.0,2554.4,0.39141]
[1726819594460,3.59913,2555.0,2554.3,0.39143]
[1726819594655,3.2078,2554.7,2554.3,0.39143]
[1726819594859,3.2078,2554.7,2554.2,0.39144]
[1726819595456,3.2078,2554.7,2553.7,4.3884]
[1726819595653,3.2078,2554.4,2553.7,4.3884]
[1726819595855,3.2078,2554.4,2553.7,1.1806]
[1726819596159,3.59918,2554.7,2554.0,0.39147]
[1726819596357,3.2078,2554.7,2554.1,0.39145]
[1726819596759,3.2078,2554.7,2554.4,0.39141]
[1726819597359,3.2078,2554.7,2554.3,0.39142]
[1726819597559,3.2078,2554.7,2554.1,0.39146]
[1726819597861,3.2078,2554.7,2554.2,0.39145]
[1726819598558,3.2078,2555.0,2554.0,3.2078]
[1726819598954,3.2078,2555.0,2554.6,0.39138]
[1726819599360,3.2078,2555.0,2554.0,3.2078]
[1726819599560,0.978,2555.9,2554.0,3.2078]
[1726819599561,3.2078,2555.3,2554.4,3.2078]
[1726819599759,4.29928488,2556.5,2554.4,3.2078]
[1726819599760,3.2078,2555.6,2554.5,0.7597]
[1726819600057,3.2078,2555.6,2555.3,0.39128]
[1726819600263,3.2078,2555.6,2555.4,0.39126]
[1726819600461,3.2078,2556.1,2555.2,3.2078]
[1726819600658,0.2303,2556.3,2555.9,0.39118]
[1726819600659,3.2078,2556.3,2555.9,0.39118]
[1726819600965,3.2078,2556.3,2555.5,0.39124]
[1726819601164,3.2078,2556.0,2555.3,0.77187]
[1726819601462,3.2078,2556.0,2555.5,0.39124]
[1726819601663,3.2078,2556.0,2555.4,0.39126]
[1726819602658,3.2078,2556.0,2555.3,0.3806]
[1726819602859,3.2078,2556.0,2555.3,0.77187]
[1726819603367,3.2078,2556.0,2555.4,0.39126]
[1726819604259,3.2078,2556.0,2555.5,0.39125]
[1726819604459,3.2078,2556.0,2555.3,0.3806]
[1726819604660,3.2078,2556.0,2555.7,0.39121]
[1726819604863,3.2078,2556.0,2555.4,3.2078]
[1726819605066,3.2078,2556.8,2556.1,0.39115]
[1726819605260,3.2078,2556.7,2555.8,3.2078]
[1726819605666,3.2078,2556.4,2556.1,0.39116]
[1726819606068,3.2078,2556.4,2556.2,0.39113]
[1726819606772,3.2078,2556.4,2555.9,0.39118]
[1726819607069,3.2078,2556.4,2555.9,0.39119]
[1726819607361,3.2078,2556.4,2555.5,3.2078]
[1726819607362,3.2078,2556.4,2556.0,0.39117]
[1726819607568,3.2078,2556.4,2556.3,0.39113]
[1726819607769,3.2078,2556.7,2556.2,0.39114]
[1726819607969,3.2078,2556.7,2556.3,0.39113]
[1726819608167,3.2078,2556.7,2555.9,0.4026]
[1726819608359,3.2078,2556.7,2556.1,3.2078]
[1726819608666,3.2078,2557.2,2556.4,3.2078]
[1726819608857,3.2078,2557.2,2556.8,0.39104]
[1726819609062,3.2078,2557.2,2556.9,0.39103]
[1726819609465,3.2078,2557.2,2556.8,0.39104]
[1726819609664,3.2078,2557.2,2556.4,3.2078]
[1726819609857,3.2078,2557.2,2556.7,3.2078]
[1726819610263,3.2078,2557.7,2556.8,0.3801]
[1726819610461,3.2078,2557.7,2556.9,0.3957]
[1726819610660,3.2078,2557.7,2557.3,0.39096]
[1726819610865,3.2078,2557.7,2557.6,0.39093]
[1726819611273,3.2078,2557.7,2557.6,4.30053]
[1726819611479,3.2078,2558.0,2557.6,3.9096]
[1726819611663,3.2078,2558.0,2557.9,0.39088]
[1726819612863,3.2078,2558.0,2557.7,0.3738]
[1726819613172,3.2078,2558.0,2557.3,3.2078]
[1726819613370,3.2078,2558.0,2557.4,0.39095]
[1726819613672,3.2078,2558.0,2557.5,0.39094]
[1726819615378,3.2078,2558.0,2557.4,0.39095]
[1726819615575,3.2078,2558.0,2557.5,0.39094]
[1726819616073,3.2078,2558.0,2557.4,0.39095]
[1726819616271,3.2078,2558.0,2557.3,3.2078]
[1726819616577,3.2078,2558.0,2557.6,0.39092]
[1726819616773,3.2078,2558.0,2557.3,3.2078]
[1726819616975,3.2078,2558.0,2557.7,0.3909]
[1726819617274,3.2078,2558.0,2557.9,0.39088]
[1726819617470,3.2078,2558.0,2557.8,0.39089]
[1726819617972,3.2078,2558.0,2557.8,4.30049]
[1726819618368,3.2078,2558.0,2557.8,0.39089]
[1726819618977,3.2078,2558.0,2557.7,0.3909]
[1726819619275,3.2078,2558.0,2557.6,3.2078]
[1726819619479,3.2078,2558.0,2557.8,0.39089]
[1726819619873,3.2078,2558.0,2557.8,3.9096]
[1726819620068,3.2078,2558.0,2557.9,0.39088]
[1726819620878,3.2078,2558.0,2557.9,4.30048]
[1726819621179,3.6666,2558.9,2557.9,9.9096]
[1726819621380,3.6666,2558.9,2558.4,0.39079]
[1726819621581,3.6666,2558.9,2558.0,1.76257]
[1726819621782,3.2078,2558.9,2558.6,0.39076]
[1726819622076,3.2078,2558.9,2558.5,3.2078]
[1726819622371,3.2078,2559.3,2558.2,0.97709]
[1726819622578,3.2078,2559.3,2559.0,0.39071]
[1726819622775,3.2078,2559.3,2559.1,0.3907]
[1726819623077,3.2078,2559.3,2559.2,0.39068]
[1726819623279,3.2078,2559.3,2559.1,0.39069]
[1726819623479,3.2078,2559.3,2558.7,0.4079]
[1726819623679,3.2078,2559.3,2558.9,0.39072]
[1726819623875,3.2078,2559.3,2558.7,0.39075]
[1726819624179,3.2078,2558.9,2558.5,0.39079]
[1726819624479,3.2078,2558.9,2558.1,3.6145]
[1726819624776,3.2078,2558.9,2558.6,0.39077]
[1726819625079,3.2078,2559.2,2558.4,3.2078]
[1726819625279,3.2078,2559.2,2558.8,0.39074]
[1726819625482,3.2078,2559.2,2558.9,0.39073]
[1726819625778,3.2078,2559.2,2558.4,4.18482]
[1726819625980,3.2078,2559.2,2559.1,0.3907]
[1726819626178,3.2078,2559.2,2559.0,0.3907]
[1726819626382,3.2078,2559.2,2559.1,0.3907]
[1726819626776,3.2078,2559.2,2559.1,3.9072]
[1726819627170,3.2078,2559.2,2559.0,0.39071]
[1726819627581,3.2078,2559.2,2558.8,0.7816]
[1726819627974,3.2078,2559.6,2558.9,3.908]
[1726819628181,3.6666,2559.9,2559.2,0.39068]
[1726819628376,3.6666,2559.9,2559.3,0.39067]
[1726819628779,3.2078,2559.6,2558.8,3.9894]
[1726819628981,3.2078,2559.0,2558.8,0.7816]
[1726819629180,3.2078,2559.3,2558.8,0.7816]
[1726819629788,3.2078,2559.3,2558.8,0.3749]
[1726819629976,3.2078,2559.0,2558.8,0.3749]
[1726819630286,5.65527,2559.9,2558.4,0.3902]
[1726819630287,3.2078,2558.9,2558.4,0.3902]
[1726819630485,3.2078,2558.6,2558.3,0.39081]
[1726819630691,3.2078,2558.9,2558.0,0.4015]
[1726819630885,3.2078,2558.9,2558.4,0.3908]
[1726819631680,3.2078,2558.9,2558.1,3.2078]
[1726819631880,3.2078,2558.9,2558.0,0.4015]
[1726819632193,3.2078,2558.2,2557.6,0.3889]
[1726819632398,0.97686,2558.9,2557.2,10.0258]
[1726819632399,3.2078,2557.9,2557.3,0.7917]
[1726819632993,3.2078,2557.6,2557.3,1.18267]
[1726819633193,3.2078,2557.6,2557.2,0.39099]
[1726819633501,3.2078,2557.6,2557.1,0.391]
[1726819633699,3.2078,2557.6,2556.7,3.5839]
[1726819634000,3.2078,2557.2,2556.9,0.39102]
[1726819634197,3.2078,2557.2,2556.7,0.3761]
[1726819634497,0.9771,2558.2,2556.5,0.39109]
[1726819634498,3.2078,2556.9,2556.5,0.39109]
[1726819635000,3.2078,2556.9,2556.2,3.5839]